[Event "9th RTU Open 2019"]
[Site "Riga"]
[Date "2019.08.06"]
[Round "3.16"]
[White "Laurusas, Tomas"]
[Black "Sowray, Peter J"]
[Result "1-0"]
[ECO "E01"]
[WhiteElo "2511"]
[BlackElo "2334"]
[Annotator "ChessBase"]
[PlyCount "69"]
[EventDate "2019.08.05"]
[EventType "swiss"]
[EventCountry "LAT"]
[SourceTitle "playchess.com"]
[Source "ChessBase"]
[SourceQuality "1"]
[TimeControl "5400+30"]

1. c4 {[%emt 0:00:00]} e6 {[%emt 0:00:00]} 2. Nf3 {[%emt 0:00:33]} d5 {[%emt 0:00:00]} 3. d4 {[%emt 0:02:45]} Nf6 {[%emt 0:00:08]} 4. g3 {[%emt 0:01:24]} dxc4 {[%emt 0:00:10]} 5. Qc2 {[%emt 0:00:57]} a6 {[%emt 0:05:09]} 6. a4 {[%emt 0:00:58]} c5 {[%emt 0:09:33]} 7. dxc5 {[%emt 0:08:04]} Bxc5 {[%emt 0:03:23]} 8. Bg2 {[%emt 0:00:06]} Nbd7 {[%emt 0:09:11]} 9. O-O {[%emt 0:00:25]} Ra7 {[%emt 0:08:10]} 10. Qxc4 {[%emt 0:01:36]} b5 {[%emt 0:01:17]} 11. Qd3 {[%emt 0:03:54]} Bb7 {[%emt 0:02:33]} 12. axb5 {[%emt 0:10:09]} Be4 {[%emt 0:00:22]} 13. Qd1 {[%emt 0:00:09]} axb5 {[%emt 0:03:59]} 14. Rxa7 {[%emt 0:03:36]} Bxa7 {[%emt 0:00:05]} 15. Nc3 {[%emt 0:00:03]} Bc6 {[%emt 0:01:56]} 16. Nd4 {[%emt 0:01:17]} Bxg2 {[%emt 0:02:29]} 17. Kxg2 {[%emt 0:00:02]} b4 {[%emt 0:05:54]} 18. Ncb5 {[%emt 0:00:27]} Qa8+ {[%emt 0:00:33]} 19. f3 {[%emt 0:05:02]} O-O {[%emt 0:00:37]} 20. Nxa7 {[%emt 0:00:09]} Qxa7 {[%emt 0:00:15]} 21. Be3 {[%emt 0:00:43]} Qa2 {[%emt 0:05:55]} 22. Qb3 {[%emt 0:04:47]} Ra8 {[%emt 0:02:39]} 23. Rc1 {[%emt 0:01:06]} Qxb3 {[%emt 0:02:32]} 24. Nxb3 {[%emt 0:03:06]} h6 {[%emt 0:00:15]} 25. Kf2 {[%emt 0:02:07]} Nd5 {[%emt 0:05:53]} 26. Bd2 {[%emt 0:01:27]} f5 {[%emt 0:00:09]} 27. h3 {[%emt 0:06:34]} N7b6 {[%emt 0:07:49]} 28. Rc6 {[%emt 0:01:05]} Ra2 {[%emt 0:01:40]} 29. Bc1 {[%emt 0:00:17]} Na4 {[%emt 0:02:50]} 30. Ra6 {[%emt 0:01:11]} Kf7 {[%emt 0:04:39]} 31. Nc5 {[%emt 0:05:31]} Ra1 {[%emt 0:01:17]} 32. Bf4 {[%emt 0:08:18]} Nxc5 {[%emt 0:04:18]} 33. Rxa1 {[%emt 0:00:10]} Kf6 {[%emt 0:00:11]} 34. Bd6 {[%emt 0:00:41]} Nb3 {[%emt 0:00:48]} 35. Ra4 {[%emt 0:01:09]} 1-0

[Event "9th RTU Open 2019"]
[Site "Riga"]
[Date "2019.08.06"]
[Round "3.17"]
[White "Lobanov, Sergei"]
[Black "Manish Anto Cristiano F"]
[Result "1-0"]
[ECO "D46"]
[WhiteElo "2505"]
[BlackElo "2208"]
[Annotator "ChessBase"]
[PlyCount "91"]
[EventDate "2019.08.05"]
[EventType "swiss"]
[EventCountry "LAT"]
[SourceTitle "playchess.com"]
[Source "ChessBase"]
[SourceQuality "1"]
[TimeControl "5400+30"]

1. d4 {[%emt 0:05:45]} d5 {[%emt 0:00:00]} 2. c4 {[%emt 0:00:06]} c6 {[%emt 0:00:10]} 3. Nf3 {[%emt 0:00:07]} Nf6 {[%emt 0:00:22]} 4. Nc3 {[%emt 0:00:05]} e6 {[%emt 0:00:32]} 5. e3 {[%emt 0:00:06]} Nbd7 {[%emt 0:00:27]} 6. Qc2 {[%emt 0:00:07]} Bd6 {[%emt 0:00:33]} 7. Bd3 {[%emt 0:00:05]} O-O {[%emt 0:01:29]} 8. O-O {[%emt 0:00:11]} dxc4 {[%emt 0:00:40]} 9. Bxc4 {[%emt 0:00:06]} e5 {[%emt 0:01:02]} 10. Rd1 {[%emt 0:03:16]} Qc7 {[%emt 0:00:50]} 11. h3 {[%emt 0:00:21]} h6 {[%emt 0:00:16]} 12. b3 {[%emt 0:01:56]} Re8 {[%emt 0:04:05]} 13. a4 {[%emt 0:06:09]} Nb6 {[%emt 0:07:01]} 14. Bf1 {[%emt 0:02:23]} e4 {[%emt 0:02:11]} 15. Nd2 {[%emt 0:00:06]} Qe7 {[%emt 0:00:31]} 16. Nc4 {[%emt 0:03:21]} Bc7 {[%emt 0:05:12]} 17. Ba3 {[%emt 0:01:50]} Qe6 {[%emt 0:00:14]} 18. Nxb6 {[%emt 0:02:07]} Bxb6 {[%emt 0:00:58]} 19. Bc4 {[%emt 0:02:01]} Nd5 {[%emt 0:01:11]} 20. Rac1 {[%emt 0:11:21]} Qf5 {[%emt 0:13:50]} 21. b4 {[%emt 0:05:39]} a6 {[%emt 0:04:28]} 22. Qb3 {[%emt 0:14:38]} Be6 {[%emt 0:01:19]} 23. Nxd5 {[%emt 0:01:23]} Bxd5 {[%emt 0:07:03]} 24. Bxd5 {[%emt 0:00:13]} cxd5 {[%emt 0:01:40]} 25. a5 {[%emt 0:00:34]} Bd8 {[%emt 0:04:33]} 26. Rc5 {[%emt 0:01:34]} Bh4 {[%emt 0:00:10]} 27. Rd2 {[%emt 0:04:38]} Red8 {[%emt 0:01:13]} 28. b5 {[%emt 0:00:55]} axb5 {[%emt 0:06:44]} 29. Rxb5 {[%emt 0:00:10]} Rd7 {[%emt 0:00:35]} 30. Bc5 {[%emt 0:01:05]} Bd8 {[%emt 0:02:16]} 31. Ra2 {[%emt 0:03:11]} Kh7 {[%emt 0:01:44]} 32. Bb6 {[%emt 0:00:19]} Be7 {[%emt 0:04:09]} 33. Rc2 {[%emt 0:00:11]} g5 {[%emt 0:04:52]} 34. Rc7 {[%emt 0:01:44]} Rad8 {[%emt 0:00:48]} 35. Rxd7 {[%emt 0:08:27]} Rxd7 {[%emt 0:00:11]} 36. Bc5 {[%emt 0:02:56]} Bd8 {[%emt 0:01:38]} 37. Qb1 {[%emt 0:01:16]} Qe6 {[%emt 0:03:10]} 38. Bb6 {[%emt 0:01:37]} Be7 {[%emt 0:01:34]} 39. Qc2 {[%emt 0:00:05]} g4 {[%emt 0:02:20]} 40. hxg4 {[%emt 0:01:09]} Qxg4 {[%emt 0:00:09]} 41. Rb1 {[%emt 0:00:27]} Rd6 {[%emt 0:01:04]} 42. Bc5 {[%emt 0:05:45]} Rg6 {[%emt 0:01:17]} 43. f3 {[%emt 0:00:14]} exf3 {[%emt 0:05:10]} 44. Bxe7 {[%emt 0:00:06]} Qe6 {[%emt 0:00:57]} 45. Bh4 {[%emt 0:01:52]} Qh3 {[%emt 0:01:21]} 46. Qxg6+ {[%emt 0:00:03] Qe6 Qc2+} 1-0

[Event "9th RTU Open 2019"]
[Site "Riga"]
[Date "2019.08.06"]
[Round "3.18"]
[White "Zanan, Evgeny"]
[Black "Afanasiev, Vadim"]
[Result "1/2-1/2"]
[ECO "B15"]
[WhiteElo "2505"]
[BlackElo "2263"]
[Annotator "ChessBase"]
[PlyCount "75"]
[EventDate "2019.08.05"]
[EventType "swiss"]
[EventCountry "LAT"]
[SourceTitle "playchess.com"]
[Source "ChessBase"]
[SourceQuality "1"]
[TimeControl "5400+30"]

1. e4 {[%emt 0:06:52]} c6 {[%emt 0:00:20]} 2. d4 {[%emt 0:03:05]} d5 {[%emt 0:00:08]} 3. Nc3 {[%emt 0:00:35]} dxe4 {[%emt 0:00:36]} 4. Nxe4 {[%emt 0:00:05]} Nf6 {[%emt 0:00:06]} 5. Nxf6+ {[%emt 0:01:55]} exf6 {[%emt 0:00:44]} 6. c3 {[%emt 0:00:05]} Bd6 {[%emt 0:00:15]} 7. Bd3 {[%emt 0:00:05]} O-O {[%emt 0:00:19]} 8. Ne2 {[%emt 0:00:10]} Qc7 {[%emt 0:00:30]} 9. Qc2 {[%emt 0:00:23]} h5 {[%emt 0:02:43]} 10. Be3 {[%emt 0:03:35]} Re8 {[%emt 0:01:29]} 11. O-O-O {[%emt 0:01:52]} Nd7 {[%emt 0:03:20]} 12. Kb1 {[%emt 0:02:45]} h4 {[%emt 0:07:59]} 13. h3 {[%emt 0:10:03]} Nf8 {[%emt 0:01:22]} 14. c4 {[%emt 0:04:45]} Ne6 {[%emt 0:15:03]} 15. c5 {[%emt 0:08:42]} Bf4 {[%emt 0:08:46]} 16. Rhe1 {[%emt 0:05:20]} Bd7 {[%emt 0:07:29]} 17. Nc3 {[%emt 0:02:39]} Ng5 {[%emt 0:11:14]} 18. Qd2 {[%emt 0:09:35]} Bxe3 {[%emt 0:00:35]} 19. fxe3 {[%emt 0:03:24]} b6 {[%emt 0:04:49]} 20. cxb6 {[%emt 0:05:29]} axb6 {[%emt 0:00:30]} 21. e4 {[%emt 0:00:07]} c5 {[%emt 0:13:01]} 22. e5 {[%emt 0:04:59]} cxd4 {[%emt 0:02:55]} 23. exf6 {[%emt 0:00:40]} Rxe1 {[%emt 0:06:01]} 24. Rxe1 {[%emt 0:01:28]} dxc3 {[%emt 0:01:03]} 25. Qxg5 {[%emt 0:00:09]} Qg3 {[%emt 0:00:04]} 26. Qxg3 {[%emt 0:03:15]} hxg3 {[%emt 0:00:05]} 27. bxc3 {[%emt 0:08:43]} Be6 {[%emt 0:01:48]} 28. c4 {[%emt 0:04:41]} gxf6 {[%emt 0:02:41]} 29. Re3 {[%emt 0:00:10]} Kf8 {[%emt 0:01:08]} 30. Rxg3 {[%emt 0:01:07]} Ra4 {[%emt 0:01:10]} 31. Rf3 {[%emt 0:03:45]} Ke7 {[%emt 0:00:21]} 32. Re3 {[%emt 0:02:57]} Kd6 {[%emt 0:01:12]} 33. Kb2 {[%emt 0:02:31]} b5 {[%emt 0:02:34]} 34. cxb5 {[%emt 0:00:23]} Rxa2+ {[%emt 0:00:07]} 35. Kc3 {[%emt 0:00:05]} Rxg2 {[%emt 0:00:11]} 36. Rf3 {[%emt 0:01:00]} Rh2 {[%emt 0:01:56]} 37. Rxf6 {[%emt 0:00:30]} Rxh3 {[%emt 0:00:18]} 38. Kd4 {[%emt 0:00:26] Ke5+ Ke4+} 1/2-1/2

[Event "9th RTU Open 2019"]
[Site "Riga"]
[Date "2019.08.06"]
[Round "3.19"]
[White "Rehn, Ralf"]
[Black "Pultinevicius, Paulius"]
[Result "0-1"]
[ECO "B18"]
[WhiteElo "2161"]
[BlackElo "2481"]
[Annotator "ChessBase"]
[PlyCount "82"]
[EventDate "2019.08.05"]
[EventType "swiss"]
[EventCountry "LAT"]
[SourceTitle "playchess.com"]
[Source "ChessBase"]
[SourceQuality "1"]
[TimeControl "5400+30"]

1. e4 {[%emt 0:00:00]} c6 {[%emt 0:00:01]} 2. d4 {[%emt 0:00:42]} d5 {[%emt 0:00:20]} 3. Nc3 {[%emt 0:00:32]} dxe4 {[%emt 0:00:09]} 4. Nxe4 {[%emt 0:00:08]} Bf5 {[%emt 0:00:04]} 5. Ng3 {[%emt 0:00:33]} Bg6 {[%emt 0:00:06]} 6. Nf3 {[%emt 0:01:11]} Nd7 {[%emt 0:00:07]} 7. Nh4 {[%emt 0:05:17]} e6 {[%emt 0:02:04]} 8. Nxg6 {[%emt 0:01:14]} hxg6 {[%emt 0:00:06]} 9. Bd3 {[%emt 0:05:23]} Ngf6 {[%emt 0:03:09]} 10. Qe2 {[%emt 0:01:00]} Qc7 {[%emt 0:02:11]} 11. h3 {[%emt 0:03:25]} O-O-O {[%emt 0:05:16]} 12. Ne4 {[%emt 0:03:52]} Nxe4 {[%emt 0:05:17]} 13. Bxe4 {[%emt 0:00:31]} f5 {[%emt 0:03:06]} 14. Bd3 {[%emt 0:10:59]} e5 {[%emt 0:00:39]} 15. c3 {[%emt 0:09:37]} exd4 {[%emt 0:02:09]} 16. cxd4 {[%emt 0:02:46]} Bb4+ {[%emt 0:00:22]} 17. Bd2 {[%emt 0:03:09]} Rhe8 {[%emt 0:01:36]} 18. Bxb4 {[%emt 0:00:15]} Rxe2+ {[%emt 0:00:08]} 19. Bxe2 {[%emt 0:01:10]} Re8 {[%emt 0:01:04]} 20. Kf1 {[%emt 0:01:37]} Nf6 {[%emt 0:01:28]} 21. Bf3 {[%emt 0:03:30]} Qf4 {[%emt 0:01:27]} 22. Rd1 {[%emt 0:01:12]} Rd8 {[%emt 0:05:34]} 23. Bc3 {[%emt 0:01:01]} Ne4 {[%emt 0:05:31]} 24. Bxe4 {[%emt 0:07:59]} fxe4 {[%emt 0:02:06]} 25. Ke2 {[%emt 0:00:32]} Rf8 {[%emt 0:01:03]} 26. Rhf1 {[%emt 0:02:12]} Qg5 {[%emt 0:00:56]} 27. Rg1 {[%emt 0:00:54]} Qh5+ {[%emt 0:01:09]} 28. Ke3 {[%emt 0:07:18]} g5 {[%emt 0:00:15]} 29. d5 {[%emt 0:06:03]} g4 {[%emt 0:02:10]} 30. dxc6 {[%emt 0:08:04]} bxc6 {[%emt 0:00:24]} 31. hxg4 {[%emt 0:00:59]} Qg5+ {[%emt 0:00:17]} 32. Ke2 {[%emt 0:01:50]} Qxg4+ {[%emt 0:00:04]} 33. Ke1 {[%emt 0:03:08]} Rf5 {[%emt 0:11:51]} 34. Bd4 {[%emt 0:01:49]} Rd5 {[%emt 0:00:06]} 35. Rd2 {[%emt 0:00:11]} Qd7 {[%emt 0:00:08]} 36. Bc3 {[%emt 0:01:15]} Rxd2 {[%emt 0:00:05]} 37. Bxd2 {[%emt 0:00:05]} Qd3 {[%emt 0:00:19]} 38. Kd1 {[%emt 0:00:31]} Qb1+ {[%emt 0:00:11]} 39. Bc1 {[%emt 0:00:06]} Qxa2 {[%emt 0:00:10]} 40. Ke2 {[%emt 0:02:48]} Qc4+ {[%emt 0:00:50]} 41. Kd1 {[%emt 0:03:43]} Qb3+ {[%emt 0:00:05]} 0-1

[Event "9th RTU Open 2019"]
[Site "Riga"]
[Date "2019.08.06"]
[Round "3.20"]
[White "Batashevs, Arsens"]
[Black "Vogel, Roven"]
[Result "0-1"]
[ECO "B01"]
[WhiteElo "2004"]
[BlackElo "2456"]
[Annotator "ChessBase"]
[PlyCount "60"]
[EventDate "2019.08.05"]
[EventType "swiss"]
[EventCountry "LAT"]
[SourceTitle "playchess.com"]
[Source "ChessBase"]
[SourceQuality "1"]
[TimeControl "5400+30"]

1. Nf3 {[%emt 0:00:00]} d5 {[%emt 0:00:00]} 2. e4 {[%emt 0:00:00]} dxe4 {[%emt 0:02:43]} 3. Ng5 {[%emt 0:00:00]} Bf5 {[%emt 0:03:20]} 4. Nc3 {[%emt 0:00:29]} Nf6 {[%emt 0:00:42]} 5. d3 {[%emt 0:00:40]} Bg4 {[%emt 0:06:28]} 6. Be2 {[%emt 0:05:23]} Bxe2 {[%emt 0:00:27]} 7. Qxe2 {[%emt 0:00:08]} exd3 {[%emt 0:00:54]} 8. Qf3 {[%emt 0:01:02]} Nc6 {[%emt 0:01:02]} 9. O-O {[%emt 0:17:32]} h6 {[%emt 0:02:13]} 10. Nge4 {[%emt 0:00:36]} Nxe4 {[%emt 0:09:38]} 11. Nxe4 {[%emt 0:03:28]} e6 {[%emt 0:04:21]} 12. Rd1 {[%emt 0:01:57]} Qd5 {[%emt 0:06:20]} 13. Bf4 {[%emt 0:04:59]} O-O-O {[%emt 0:07:55]} 14. Rxd3 {[%emt 0:04:15]} Nd4 {[%emt 0:01:25]} 15. Qe3 {[%emt 0:00:06]} e5 {[%emt 0:00:14]} 16. Qh3+ {[%emt 0:17:37]} f5 {[%emt 0:05:24]} 17. Nc3 {[%emt 0:00:51]} Qa5 {[%emt 0:02:35]} 18. Rad1 {[%emt 0:03:19]} Be7 {[%emt 0:01:20]} 19. Be3 {[%emt 0:01:08]} g6 {[%emt 0:09:09]} 20. Bxd4 {[%emt 0:00:37]} exd4 {[%emt 0:00:02]} 21. Rxd4 {[%emt 0:00:11]} Rxd4 {[%emt 0:00:08]} 22. Rxd4 {[%emt 0:00:05]} Bf6 {[%emt 0:01:25]} 23. Rd5 {[%emt 0:24:09]} Qb4 {[%emt 0:02:11]} 24. Rb5 {[%emt 0:02:28]} Re8 {[%emt 0:01:39]} 25. g4 {[%emt 0:03:13]} Qc4 {[%emt 0:03:17]} 26. gxf5 {[%emt 0:02:07]} Bxc3 {[%emt 0:02:34]} 27. f6+ {[%emt 0:00:03]} Kb8 {[%emt 0:01:27]} 28. Qd7 {[%emt 0:07:05]} Re1+ {[%emt 0:01:43]} 29. Kg2 {[%emt 0:00:04]} Qe4+ {[%emt 0:00:16]} 30. f3 {[%emt 0:00:38]} Re2+ {[%emt 0:00:12]} 0-1

[Event "9th RTU Open 2019"]
[Site "Riga"]
[Date "2019.08.06"]
[Round "3.21"]
[White "Mikaelyan, Arman"]
[Black "Caglar, Sila"]
[Result "1-0"]
[ECO "B23"]
[WhiteElo "2454"]
[BlackElo "2306"]
[Annotator "ChessBase"]
[PlyCount "39"]
[EventDate "2019.08.05"]
[EventType "swiss"]
[EventCountry "LAT"]
[SourceTitle "playchess.com"]
[Source "ChessBase"]
[SourceQuality "1"]
[TimeControl "5400+30"]

1. e4 {[%emt 0:00:00]} c5 {[%emt 0:00:00]} 2. Nc3 {[%emt 0:00:00]} Nc6 {[%emt 0:01:00]} 3. Bb5 {[%emt 0:00:00]} Nd4 {[%emt 0:00:09]} 4. Nf3 {[%emt 0:00:07]} Nxb5 {[%emt 0:02:30]} 5. Nxb5 {[%emt 0:00:07]} d6 {[%emt 0:01:17]} 6. d4 {[%emt 0:00:34]} cxd4 {[%emt 0:01:18]} 7. Qxd4 {[%emt 0:00:55]} a6 {[%emt 0:00:57]} 8. Nc3 {[%emt 0:00:12]} Nf6 {[%emt 0:13:20]} 9. Bg5 {[%emt 0:03:50]} h6 {[%emt 0:04:12]} 10. Bxf6 {[%emt 0:05:03]} gxf6 {[%emt 0:00:08]} 11. O-O-O {[%emt 0:02:10]} Rg8 {[%emt 0:05:20]} 12. Rhe1 {[%emt 0:16:33]} Be6 {[%emt 0:05:48]} 13. Nd5 {[%emt 0:05:12]} Rc8 {[%emt 0:04:26]} 14. Kb1 {[%emt 0:06:56]} Qa5 {[%emt 0:03:00]} 15. g3 {[%emt 0:04:25]} Qc5 {[%emt 0:04:41]} 16. Qd2 {[%emt 0:02:20]} Bg7 {[%emt 0:05:21]} 17. Nh4 {[%emt 0:04:43]} Kd7 {[%emt 0:07:19]} 18. Re3 {[%emt 0:05:10]} Rge8 {[%emt 0:06:50]} 19. Rc3 {[%emt 0:03:53]} Qa5 {[%emt 0:09:06]} 20. Rxc8 {[%emt 0:00:16]} 1-0

[Event "9th RTU Open 2019"]
[Site "Riga"]
[Date "2019.08.06"]
[Round "3.22"]
[White "Kulaots, Kaido"]
[Black "Olde, Margareth"]
[Result "1/2-1/2"]
[ECO "C84"]
[WhiteElo "2560"]
[BlackElo "2126"]
[Annotator "ChessBase"]
[PlyCount "77"]
[EventDate "2019.08.05"]
[EventType "swiss"]
[EventCountry "LAT"]
[SourceTitle "playchess.com"]
[Source "ChessBase"]
[SourceQuality "1"]
[TimeControl "5400+30"]

1. e4 {[%emt 0:00:00]} e5 {[%emt 0:00:00]} 2. Nf3 {[%emt 0:00:01]} Nc6 {[%emt 0:00:00]} 3. Bb5 {[%emt 0:00:07]} a6 {[%emt 0:00:00]} 4. Ba4 {[%emt 0:00:07]} Nf6 {[%emt 0:00:04]} 5. O-O {[%emt 0:01:55]} Be7 {[%emt 0:00:16]} 6. d3 {[%emt 0:01:04]} d6 {[%emt 0:01:17]} 7. c3 {[%emt 0:00:14]} O-O {[%emt 0:00:09]} 8. Re1 {[%emt 0:00:12]} b5 {[%emt 0:00:37]} 9. Bc2 {[%emt 0:00:08]} d5 {[%emt 0:00:46]} 10. exd5 {[%emt 0:03:13]} Qxd5 {[%emt 0:00:26]} 11. Nbd2 {[%emt 0:05:04]} Bg4 {[%emt 0:10:48]} 12. h3 {[%emt 0:05:42]} Bh5 {[%emt 0:01:09]} 13. Qe2 {[%emt 0:01:25]} Rfe8 {[%emt 0:01:54]} 14. Ne4 {[%emt 0:01:47]} Rad8 {[%emt 0:08:34]} 15. Bg5 {[%emt 0:12:11]} Nxe4 {[%emt 0:14:10]} 16. dxe4 {[%emt 0:04:11]} Qd7 {[%emt 0:00:46]} 17. Be3 {[%emt 0:00:54]} Bxf3 {[%emt 0:02:38]} 18. Qxf3 {[%emt 0:00:16]} Na5 {[%emt 0:00:13]} 19. a4 {[%emt 0:14:54]} Nc4 {[%emt 0:06:11]} 20. Bc1 {[%emt 0:00:22]} Qc6 {[%emt 0:01:47]} 21. Rd1 {[%emt 0:21:44]} Rxd1+ {[%emt 0:05:11]} 22. Qxd1 {[%emt 0:00:05]} Rd8 {[%emt 0:00:13]} 23. Qe2 {[%emt 0:00:25]} Bc5 {[%emt 0:06:40]} 24. b3 {[%emt 0:08:26]} Nd6 {[%emt 0:02:04]} 25. Bg5 {[%emt 0:02:21]} f6 {[%emt 0:04:30]} 26. Bd2 {[%emt 0:01:53]} b4 {[%emt 0:11:48]} 27. Bd3 {[%emt 0:01:37]} bxc3 {[%emt 0:00:44]} 28. Bc4+ {[%emt 0:00:10]} Kh8 {[%emt 0:02:35]} 29. Bd5 {[%emt 0:00:27]} Qb6 {[%emt 0:02:04]} 30. Bxc3 {[%emt 0:01:18]} c6 {[%emt 0:00:22]} 31. Bc4 {[%emt 0:04:09]} Nxc4 {[%emt 0:00:57]} 32. bxc4 {[%emt 0:00:07]} Qb3 {[%emt 0:03:34]} 33. Ba5 {[%emt 0:01:34]} Rd4 {[%emt 0:02:50]} 34. Qg4 {[%emt 0:00:49]} h6 {[%emt 0:01:21]} 35. Qc8+ {[%emt 0:00:07]} Kh7 {[%emt 0:00:03]} 36. Qf5+ {[%emt 0:00:11]} Kh8 {[%emt 0:00:31]} 37. Qc8+ {[%emt 0:04:07]} Kh7 {[%emt 0:00:05]} 38. Qf5+ {[%emt 0:00:18]} Kh8 {[%emt 0:00:05]} 39. Qc8+ {[%emt 0:00:09]} 1/2-1/2

[Event "9th RTU Open 2019"]
[Site "Riga"]
[Date "2019.08.06"]
[Round "3.23"]
[White "Lazavik, Denis"]
[Black "Hovhannisyan, Robert"]
[Result "0-1"]
[ECO "D45"]
[WhiteElo "2339"]
[BlackElo "2640"]
[Annotator "ChessBase"]
[PlyCount "126"]
[EventDate "2019.08.05"]
[EventType "swiss"]
[EventCountry "LAT"]
[SourceTitle "playchess.com"]
[Source "ChessBase"]
[SourceQuality "1"]
[TimeControl "5400+30"]

1. d4 {[%emt 0:00:00]} Nf6 {[%emt 0:00:00]} 2. c4 {[%emt 0:00:08]} e6 {[%emt 0:00:00]} 3. Nf3 {[%emt 0:00:36]} d5 {[%emt 0:00:14]} 4. Nc3 {[%emt 0:00:31]} c6 {[%emt 0:00:12]} 5. e3 {[%emt 0:00:28]} Nbd7 {[%emt 0:00:13]} 6. Qc2 {[%emt 0:00:28]} Bd6 {[%emt 0:00:10]} 7. b3 {[%emt 0:01:03]} O-O {[%emt 0:00:35]} 8. Be2 {[%emt 0:00:21]} b6 {[%emt 0:00:20]} 9. O-O {[%emt 0:00:39]} Bb7 {[%emt 0:00:10]} 10. Bb2 {[%emt 0:00:19]} Qe7 {[%emt 0:00:37]} 11. Rad1 {[%emt 0:00:50]} Rad8 {[%emt 0:00:38]} 12. Rfe1 {[%emt 0:00:15]} Rfe8 {[%emt 0:00:08]} 13. Bf1 {[%emt 0:00:11]} e5 {[%emt 0:00:55]} 14. dxe5 {[%emt 0:00:49]} Nxe5 {[%emt 0:00:15]} 15. Nd4 {[%emt 0:00:19]} dxc4 {[%emt 0:00:41]} 16. Nf5 {[%emt 0:00:38]} Qe6 {[%emt 0:00:31]} 17. Nxd6 {[%emt 0:01:00]} Rxd6 {[%emt 0:00:13]} 18. Rxd6 {[%emt 0:00:07]} Qxd6 {[%emt 0:00:04]} 19. Rd1 {[%emt 0:00:08]} cxb3 {[%emt 0:02:19]} 20. axb3 {[%emt 0:01:19]} Qe7 {[%emt 0:01:23]} 21. Ne4 {[%emt 0:09:31]} Nd5 {[%emt 0:06:54]} 22. Ng3 {[%emt 0:03:43]} Bc8 {[%emt 0:17:30]} 23. Bxe5 {[%emt 0:26:49]} Qxe5 {[%emt 0:00:07]} 24. Qxc6 {[%emt 0:00:11]} Nf6 {[%emt 0:00:49]} 25. Bc4 {[%emt 0:01:35]} Be6 {[%emt 0:03:20]} 26. Bxe6 {[%emt 0:01:56]} Qxe6 {[%emt 0:01:14]} 27. Qxe6 {[%emt 0:00:26]} fxe6 {[%emt 0:00:47]} 28. Rc1 {[%emt 0:01:04]} Rd8 {[%emt 0:05:31]} 29. Kf1 {[%emt 0:03:14]} h5 {[%emt 0:01:31]} 30. Ke2 {[%emt 0:05:03]} Rd5 {[%emt 0:01:24]} 31. Nf1 {[%emt 0:04:04]} Ra5 {[%emt 0:09:35]} 32. Rc2 {[%emt 0:01:20]} Ra1 {[%emt 0:02:31]} 33. h4 {[%emt 0:01:58]} Ne4 {[%emt 0:08:04]} 34. Nd2 {[%emt 0:03:38]} Nxd2 {[%emt 0:01:34]} 35. Kxd2 {[%emt 0:00:37]} Rb1 {[%emt 0:02:54]} 36. Kc3 {[%emt 0:00:46]} Kf7 {[%emt 0:00:43]} 37. b4 {[%emt 0:01:05]} a5 {[%emt 0:03:44]} 38. bxa5 {[%emt 0:00:09]} bxa5 {[%emt 0:00:03]} 39. Ra2 {[%emt 0:00:18]} Rb5 {[%emt 0:00:12]} 40. Kc4 {[%emt 0:01:34]} Rb4+ {[%emt 0:00:29]} 41. Kc3 {[%emt 0:00:04]} Rb5 {[%emt 0:03:45]} 42. Kc4 {[%emt 0:00:05]} Re5 {[%emt 0:00:41]} 43. Ra3 {[%emt 0:06:59]} Ke7 {[%emt 0:09:14]} 44. f4 {[%emt 0:01:21]} Rf5 {[%emt 0:00:14]} 45. e4 {[%emt 0:02:10]} Rxf4 {[%emt 0:00:33]} 46. Kd4 {[%emt 0:00:04]} Rxh4 {[%emt 0:01:26]} 47. Rxa5 {[%emt 0:00:05]} Kf6 {[%emt 0:00:52]} 48. Ke3 {[%emt 0:00:14]} g5 {[%emt 0:01:25]} 49. Rb5 {[%emt 0:04:28]} Rg4 {[%emt 0:01:17]} 50. Kf3 {[%emt 0:00:18]} Rf4+ {[%emt 0:00:08]} 51. Ke3 {[%emt 0:00:03]} h4 {[%emt 0:00:32]} 52. Ra5 {[%emt 0:00:51]} Rg4 {[%emt 0:01:46]} 53. Kf3 {[%emt 0:00:10]} Rg3+ {[%emt 0:00:04]} 54. Kf2 {[%emt 0:00:04]} Rb3 {[%emt 0:00:14]} 55. Rc5 {[%emt 0:00:35]} Rb2+ {[%emt 0:01:16]} 56. Kf3 {[%emt 0:00:08]} Kg6 {[%emt 0:00:41]} 57. Re5 {[%emt 0:01:04]} Rb3+ {[%emt 0:00:50]} 58. Kf2 {[%emt 0:00:04]} Rb6 {[%emt 0:00:13]} 59. Ra5 {[%emt 0:10:28]} Kh5 {[%emt 0:00:43]} 60. Kg1 {[%emt 0:01:11]} Kg4 {[%emt 0:00:40]} 61. Kh2 {[%emt 0:00:58]} Rb2 {[%emt 0:01:43]} 62. e5 {[%emt 0:00:38]} Re2 {[%emt 0:00:21]} 63. Kg1 {[%emt 0:01:18]} Kf4 {[%emt 0:00:38]} 0-1

[Event "9th RTU Open 2019"]
[Site "Riga"]
[Date "2019.08.06"]
[Round "3.24"]
[White "Ioannidis, Evgenios"]
[Black "Wagner, Dennis"]
[Result "1/2-1/2"]
[ECO "D97"]
[WhiteElo "2378"]
[BlackElo "2579"]
[Annotator "ChessBase"]
[PlyCount "79"]
[EventDate "2019.08.05"]
[EventType "swiss"]
[EventCountry "LAT"]
[SourceTitle "playchess.com"]
[Source "ChessBase"]
[SourceQuality "1"]
[TimeControl "5400+30"]

1. d4 {[%emt 0:00:00]} Nf6 {[%emt 0:00:00]} 2. c4 {[%emt 0:00:00]} g6 {[%emt 0:00:00]} 3. Nc3 {[%emt 0:00:27]} d5 {[%emt 0:00:00]} 4. Nf3 {[%emt 0:00:28]} Bg7 {[%emt 0:00:00]} 5. Qb3 {[%emt 0:00:47]} dxc4 {[%emt 0:00:07]} 6. Qxc4 {[%emt 0:00:10]} O-O {[%emt 0:01:15]} 7. e4 {[%emt 0:00:42]} Na6 {[%emt 0:00:46]} 8. Qa4 {[%emt 0:04:36]} c5 {[%emt 0:02:21]} 9. Bxa6 {[%emt 0:03:07]} cxd4 {[%emt 0:03:12]} 10. Nxd4 {[%emt 0:01:57]} bxa6 {[%emt 0:00:06]} 11. Nde2 {[%emt 0:14:19]} a5 {[%emt 0:52:54]} 12. O-O {[%emt 0:02:56]} Bd7 {[%emt 0:00:02]} 13. Qa3 {[%emt 0:07:05]} Bc6 {[%emt 0:01:47]} 14. Rd1 {[%emt 0:03:51]} Qb6 {[%emt 0:03:36]} 15. Be3 {[%emt 0:00:13]} Qb4 {[%emt 0:00:11]} 16. f3 {[%emt 0:00:11]} Qxa3 {[%emt 0:00:43]} 17. bxa3 {[%emt 0:00:05]} Rfc8 {[%emt 0:00:38]} 18. Rab1 {[%emt 0:06:52]} Ne8 {[%emt 0:08:53]} 19. Nd4 {[%emt 0:12:13]} Nd6 {[%emt 0:04:21]} 20. Nxc6 {[%emt 0:03:40]} Rxc6 {[%emt 0:00:01]} 21. Nb5 {[%emt 0:08:53]} Nxb5 {[%emt 0:00:20]} 22. Rxb5 {[%emt 0:00:04]} Rc3 {[%emt 0:04:10]} 23. Bc5 {[%emt 0:00:35]} Bf6 {[%emt 0:11:28]} 24. Rxa5 {[%emt 0:01:48]} Rb8 {[%emt 0:03:49]} 25. Bb4 {[%emt 0:03:02]} Rc2 {[%emt 0:00:01]} 26. Rxa7 {[%emt 0:00:52]} Rxa2 {[%emt 0:00:17]} 27. Rad7 {[%emt 0:06:30]} Bg5 {[%emt 0:00:23]} 28. Rc7 {[%emt 0:08:18]} h5 {[%emt 0:00:29]} 29. Rc3 {[%emt 0:03:25]} e5 {[%emt 0:01:40]} 30. Bd6 {[%emt 0:02:22]} Rb5 {[%emt 0:00:55]} 31. Rc8+ {[%emt 0:01:26]} Kh7 {[%emt 0:00:10]} 32. Bb4 {[%emt 0:03:05]} Be3+ {[%emt 0:00:05]} 33. Kf1 {[%emt 0:00:56]} Bd4 {[%emt 0:01:13]} 34. Rd2 {[%emt 0:00:39]} Rxd2 {[%emt 0:00:19]} 35. Bxd2 {[%emt 0:00:05]} Rb2 {[%emt 0:00:33]} 36. Ke2 {[%emt 0:00:41]} Ra2 {[%emt 0:00:04]} 37. a4 {[%emt 0:00:39]} Rxa4 {[%emt 0:00:08]} 38. Rc2 {[%emt 0:00:12]} Kg7 {[%emt 0:00:16]} 39. Be3 {[%emt 0:00:18]} Bxe3 {[%emt 0:00:16]} 40. Kxe3 {[%emt 0:00:04]} 1/2-1/2